bitfinex-derivatives/quotes_ETHF0:USTF0_20250530
["timestamp","ask_amount","ask_price","bid_price","bid_amount"]
[1748564053090,3.2078,2642.1,2641.8,5.3265]
[1748564053287,3.2078,2642.8,2642.0,3.2078]
[1748564053491,2.40099608,2642.7,2642.1,1.94628042]
[1748564053691,1.09939608,2642.6,2642.2,3.998]
[1748564053882,1.09939608,2642.5,2642.2,5.3265]
[1748564054188,1.3016,2642.7,2642.3,1.9456]
[1748564054493,1.31,2643.0,2642.4,3.2078]
[1748564054789,1.09967596,2642.9,2642.5,1.2406]
[1748564054993,1.09967596,2642.8,2642.6,3.998]
[1748564055893,1.2535,2642.9,2642.6,3.998]
[1748564056091,1.2535,2642.9,2642.7,0.6171]
[1748564056291,1.2535,2642.9,2642.6,3.998]
[1748564056591,1.2535,2642.9,2642.1,0.00568042]
[1748564056592,3.2078,2642.7,2642.1,0.00568042]
[1748564056790,3.2078,2642.3,2642.1,0.00568042]
[1748564057087,1.8757,2642.2,2642.1,0.00568042]
[1748564058588,2.5312,2642.2,2642.1,0.00568042]
[1748564059289,3.63538333,2642.2,2642.1,0.00568042]
[1748564060195,3.63714684,2642.2,2642.1,0.00568042]
[1748564061988,8.63714684,2642.2,2641.2,3.2078]
[1748564062191,1.10594684,2642.1,2641.5,7.1918]
[1748564062384,3.83,2642.2,2641.6,1.2191]
[1748564062787,3.83,2642.2,2641.7,0.6422]
[1748564062987,3.83,2642.2,2641.8,1.2191]
[1748564063189,1.2248,2642.1,2641.9,3.984]
[1748564063391,3.21344378,2642.2,2641.9,3.984]
[1748564063593,3.21344378,2642.2,2642.0,1.2191]
[1748564064191,3.21344378,2642.2,2642.1,0.6422]
[1748564064505,0.00564378,2642.2,2642.1,0.6422]
[1748564065193,0.00564378,2642.2,2642.1,4.6262]
[1748564065894,0.00564378,2642.2,2642.1,3.984]
[1748564068397,0.00564378,2642.2,2641.7,3.21348042]
[1748564068398,0.00564378,2642.2,2641.7,0.00568042]
[1748564068697,4.31650889,2642.1,2641.7,0.00568042]
[1748564068888,2.41510889,2642.0,2641.7,0.00568042]
[1748564069089,1.3064,2642.0,2641.7,0.00568042]
[1748564070193,0.00564378,2642.2,2641.7,0.00568042]
[1748564070496,0.00564378,2642.2,2641.7,1.22808042]
[1748564070693,0.00564378,2642.2,2641.8,0.6135]
[1748564070998,0.00564378,2642.2,2641.9,1.2224]
[1748564071300,0.00564378,2642.2,2641.9,5.0434]
[1748564071693,0.00564378,2642.2,2642.0,15.2]
[1748564071892,0.00564378,2642.2,2642.0,16.4224]
[1748564072091,0.00564378,2642.2,2642.0,15.2]
[1748564072092,3.2078,2642.1,2642.0,15.2]
[1748564072591,4.31783582,2642.1,2642.0,15.2]
[1748564072785,5.61155742,2642.1,2642.0,15.2]
[1748564073499,5.61155742,2642.1,2641.7,0.00568042]
[1748564073699,4.5014,2642.1,2641.7,0.00568042]
[1748564073895,4.5014,2642.1,2641.8,15.2]
[1748564076098,4.5014,2642.1,2641.7,0.00568042]
[1748564076292,1.11069935,2642.0,2641.7,0.00568042]
[1748564076492,1.332,2641.9,2641.7,0.00568042]
[1748564076989,1.73033271,2641.8,2641.7,0.00568042]
[1748564077189,1.73034248,2641.8,2641.7,0.00568042]
[1748564078596,4.93814248,2641.8,2640.9,3.2078]
[1748564078800,2.44394248,2641.7,2641.0,5.8513]
[1748564079003,1.11194248,2641.6,2641.0,6.4984]
[1748564079196,1.11194248,2641.5,2641.0,6.4984]
[1748564079503,0.00568042,2641.5,2641.0,6.50408042]
[1748564079801,1.11170339,2641.4,2641.1,3.984]
[1748564079999,0.00568042,2641.5,2641.1,3.984]
[1748564080200,1.1117194,2641.4,2641.2,1.2188]
[1748564080502,0.00568042,2641.5,2641.2,1.2188]
[1748564080793,1.111478,2641.4,2641.2,1.2188]
[1748564080999,0.00568042,2641.5,2641.2,1.2188]
[1748564081303,1.11147024,2641.4,2641.2,1.2188]
[1748564081506,0.00568042,2641.5,2641.2,1.2188]
[1748564081799,1.11143547,2641.4,2641.2,1.2188]
[1748564081994,0.00568042,2641.5,2641.2,4.4266]
[1748564082199,0.00568042,2641.5,2641.3,3.984]
[1748564082402,0.00568042,2641.5,2641.4,0.6267]
[1748564082798,0.00568042,2641.5,2641.0,4.63678042]
[1748564083102,0.00568042,2641.5,2641.1,1.9329]
[1748564083298,0.00568042,2641.5,2641.1,5.9169]
[1748564083600,0.00568042,2641.5,2641.2,1.3062]
[1748564084106,1.24318042,2641.5,2641.2,1.3062]
[1748564084301,4.45098042,2641.5,2641.1,0.6267]
[1748564085201,1.24318042,2641.5,2641.1,0.6267]
[1748564085500,4.45098042,2641.5,2641.1,0.6267]
[1748564085703,4.45098042,2641.5,2641.2,1.2871]
[1748564086003,3.21348042,2641.5,2641.2,1.2871]
[1748564086209,0.00568042,2641.5,2641.4,3.2078]
[1748564086506,0.00568042,2641.5,2641.3,3.985]
[1748564087604,0.00568042,2641.5,2641.4,1.2871]
[1748564088007,3.2078,2642.1,2641.4,9.4949]
[1748564088207,1.11159692,2642.0,2641.4,4.4949]
[1748564088404,3.2078,2642.1,2641.5,0.6638]
[1748564088705,1.11158878,2642.0,2641.6,1.8403]
[1748564088905,3.21344378,2642.1,2641.7,8.4148]
[1748564089103,3.21344378,2642.1,2641.8,1.233]
[1748564089706,0.00564378,2642.1,2641.9,0.6638]
[1748564089908,0.00564378,2642.1,2642.0,1.233]
[1748564095809,3.2078,2642.7,2642.0,4.4408]
[1748564096017,1.11163457,2642.6,2642.1,3.973]
[1748564096313,1.8399,2642.6,2642.1,3.973]
[1748564096514,1.8399,2642.6,2642.2,1.2533]
[1748564096909,1.8399,2642.6,2642.3,0.6107]
[1748564097110,1.8399,2642.6,2642.4,1.2533]
[1748564097311,0.6212,2642.6,2642.4,1.2533]
[1748564097512,4.5088,2643.1,2642.4,1.2533]
[1748564097710,1.11118757,2643.0,2642.5,0.00568042]
[1748564098009,2.41218757,2642.9,2642.5,0.00568042]
[1748564098208,1.301,2642.9,2642.5,0.00568042]
[1748564100914,1.301,2642.9,2642.5,3.97868042]
[1748564101122,1.301,2642.9,2642.5,0.00568042]
[1748564101917,3.829,2643.1,2642.5,0.00568042]
[1748564102131,0.6212,2643.1,2642.6,3.2078]
[1748564102427,0.6212,2643.1,2642.7,1.2053]
[1748564102631,3.2078,2643.4,2642.8,3.973]
[1748564102822,0.603,2643.3,2642.9,1.8189]
[1748564103022,1.273,2643.2,2642.9,1.8189]
[1748564103425,0.603,2643.3,2642.9,1.8189]
[1748564103930,1.2583,2643.2,2642.9,1.8189]
[1748564106524,1.2583,2643.2,2642.7,4.6077]
[1748564106729,1.2583,2643.2,2642.7,5.9143]
[1748564106930,1.2583,2643.2,2642.7,5.9133]
[1748564108129,1.2583,2643.2,2642.8,1.3066]
[1748564108627,1.2583,2643.2,2642.7,0.6347]
[1748564108826,4.4661,2643.2,2642.7,0.6347]
[1748564109221,3.2078,2643.8,2643.0,3.2078]
[1748564109421,3.2078,2644.1,2643.3,3.2078]
[1748564109631,1.2031,2644.0,2643.4,5.84738042]
[1748564111332,1.2031,2644.0,2643.6,3.2078]
[1748564111527,1.2031,2644.0,2643.7,1.2429]
[1748564111828,1.2031,2644.0,2643.7,1.8914]
[1748564112036,1.2031,2644.0,2643.7,0.6485]
[1748564112221,3.2078,2644.1,2643.7,0.6485]
[1748564112429,3.2078,2644.8,2643.9,3.2078]
[1748564112729,1.3084,2644.7,2644.2,3.2078]
[1748564112930,1.3084,2644.7,2644.3,1.2365]
[1748564113633,1.3084,2644.7,2644.2,3.2078]
[1748564113934,0.6521,2644.6,2644.2,3.2078]
[1748564114134,1.3084,2644.5,2644.2,3.2078]
[1748564114330,0.6521,2644.6,2644.2,3.2078]
[1748564114929,1.3084,2644.5,2644.1,5.2085]
[1748564115935,1.3084,2644.5,2644.2,1.2642]
[1748564116237,4.5162,2644.5,2644.0,4.6178]
[1748564116736,4.5162,2644.5,2643.8,3.2078]
[1748564116937,0.6549,2644.4,2643.9,3.971]
[1748564117134,1.27,2644.3,2643.9,3.971]
[1748564117335,1.27,2644.3,2643.9,5.2352]
[1748564118438,1.27,2644.3,2643.9,1.2642]
[1748564118639,1.27,2644.3,2643.8,3.964]
[1748564118838,1.27,2644.3,2643.7,0.6485]
[1748564119335,1.27,2644.3,2643.7,4.6125]
[1748564119336,3.2078,2644.2,2643.7,4.6125]
[1748564119539,1.2246,2644.1,2643.7,0.6485]
[1748564119732,1.8536,2644.1,2643.7,0.6485]
[1748564120531,1.8536,2644.1,2643.5,3.8481]
[1748564120741,3.2078,2643.8,2643.5,4.6043]
[1748564120937,1.2246,2643.7,2643.3,1.324]
[1748564121140,1.2246,2643.7,2643.1,3.964]
[1748564121435,1.2705,2643.6,2643.1,3.964]
[1748564121642,4.4944,2643.5,2643.1,3.964]
[1748564123544,4.4944,2643.5,2642.9,0.6492]
[1748564123844,10.59774788,2643.5,2642.8,0.07584]
[1748564124046,4.31114788,2643.5,2642.8,0.71934]
[1748564124240,4.97154788,2643.5,2642.8,0.71934]
[1748564124939,4.97154788,2643.5,2642.9,1.282]
[1748564125440,9.97154788,2643.5,2642.8,0.71934]
[1748564125643,13.93554788,2643.5,2642.8,0.71934]
[1748564126038,9.97154788,2643.5,2642.8,0.71934]
[1748564126345,4.97239764,2643.5,2642.8,2.00134]
[1748564126736,6.17659764,2643.5,2642.8,2.00134]
[1748564128648,11.17659764,2643.5,2642.8,0.71934]
[1748564128837,11.36499764,2643.5,2642.8,0.71934]
[1748564130443,11.36597507,2643.5,2642.8,0.71934]
[1748564130642,11.36597507,2643.5,2642.8,0.07584]
[1748564130944,3.2078,2642.9,2642.8,0.07584]
[1748564132539,9.4472,2642.9,2642.8,0.07584]
[1748564132945,10.55260698,2642.9,2642.8,0.07584]
[1748564133139,9.4472,2642.9,2642.3,0.6437]
[1748564133338,3.2078,2642.5,2642.3,0.6437]
[1748564134649,3.2078,2642.5,2642.1,1.26158042]
[1748564135343,1.2055,2642.4,2642.1,0.00568042]
[1748564135544,3.2078,2642.2,2642.1,0.00568042]
[1748564136348,4.4133,2642.2,2642.1,0.00568042]
[1748564139751,9.4133,2642.2,2641.1,3.965]
[1748564140050,3.2078,2641.4,2640.9,3.965]
[1748564140241,3.2078,2641.4,2641.0,1.3277]
[1748564140642,3.2078,2641.4,2641.1,0.6404]
[1748564141044,1.2658,2641.3,2641.1,0.6404]
[1748564143341,3.2078,2641.4,2641.1,0.6404]
[1748564143544,3.2078,2641.4,2641.2,1.3322]
[1748564145445,3.2078,2642.0,2641.3,3.2078]
[1748564145653,3.2078,2642.0,2641.4,1.3322]
[1748564146649,3.21348042,2642.0,2641.4,1.3322]
[1748564151147,3.2078,2641.7,2641.4,1.3322]
[1748564155258,3.2078,2641.7,2641.1,0.6404]
[1748564155454,3.2078,2641.3,2641.1,0.6404]
[1748564155760,0.1887,2641.2,2641.1,0.6404]
[1748564160957,6.29830971,2641.2,2640.2,7.1688]
[1748564161163,3.2078,2640.7,2640.3,0.6619]
[1748564161359,1.8853,2640.6,2640.3,0.6619]
[1748564161558,1.8853,2640.6,2640.1,1.9252]
[1748564161779,1.10967798,2640.5,2640.1,1.9252]
[1748564161961,1.2267,2640.4,2640.1,1.9252]
[1748564163263,4.4345,2640.4,2640.1,0.6047]
[1748564163464,4.4345,2640.4,2640.0,0.66758042]
[1748564163766,3.2078,2640.1,2640.0,0.66758042]
[1748564165257,3.21348042,2640.6,2640.0,0.66758042]
[1748564165464,3.21348042,2640.6,2640.1,1.9597]
[1748564165770,3.21348042,2640.6,2640.2,1.3138]
[1748564166967,0.1887,2641.2,2640.3,3.2078]
[1748564167154,1.10859721,2641.1,2640.7,3.2078]
[1748564167359,0.1887,2641.2,2640.8,2.49]
[1748564167667,1.10861306,2641.1,2640.8,2.49]
[1748564167861,0.1887,2641.2,2640.8,2.49]
[1748564168062,1.10866582,2641.1,2640.8,2.49]
[1748564168364,0.19438042,2641.2,2640.8,2.49]
[1748564168567,1.10874977,2641.1,2640.8,2.49]
[1748564168865,0.19438042,2641.2,2640.8,2.49]
[1748564169066,1.10873902,2641.1,2640.8,2.49]
[1748564169366,0.19438042,2641.2,2640.8,2.49]
[1748564169560,1.10883498,2641.1,2640.8,2.49]
[1748564169760,0.19438042,2641.2,2640.8,2.49]
[1748564170066,1.1088445,2641.1,2640.8,2.49]
[1748564170266,0.19438042,2641.2,2640.8,2.49]
[1748564170469,1.10893587,2641.1,2640.8,2.49]
[1748564170671,0.19438042,2641.2,2640.8,2.49]
[1748564171861,0.00568042,2641.2,2640.8,2.49]
[1748564173368,0.00568042,2641.2,2641.1,3.2078]
[1748564174063,0.19498042,2641.2,2641.1,4.5278]
[1748564176871,0.19498042,2641.2,2641.1,3.2078]
[1748564177163,0.19498042,2641.2,2641.1,4.4354]
[1748564181673,1.2717,2642.1,2641.1,9.4354]
[1748564181878,1.2717,2642.1,2641.9,3.2078]
[1748564182869,0.00568042,2642.3,2641.9,3.2078]
[1748564183169,1.31308042,2642.3,2641.9,3.2078]
[1748564183769,0.1884,2642.2,2641.9,3.2078]
[1748564184873,0.1884,2642.2,2642.0,1.2677]
[1748564185475,0.1884,2642.2,2642.1,1.2743]
[1748564189679,0.1884,2642.2,2642.1,4.4821]
[1748564191380,0.1884,2642.2,2641.8,7.1608]
[1748564191584,1.4309,2642.2,2641.8,7.1608]
[1748564191776,1.4309,2642.2,2641.9,1.2997]
[1748564202581,1.4309,2642.2,2642.1,3.2078]
[1748564202983,1.2425,2642.2,2642.1,3.2078]
[1748564203680,1.2425,2642.2,2641.8,7.7671]
[1748564203881,0.6305,2642.1,2641.8,7.1608]
[1748564204082,1.2913,2642.0,2641.8,7.1608]
[1748564204481,1.2913,2642.0,2641.8,8.4222]
[1748564204975,0.1884,2642.0,2641.8,8.4222]
[1748564205177,0.1884,2642.0,2641.9,0.653]
[1748564205383,0.1884,2642.0,2641.9,1.9144]
[1748564207189,0.1884,2642.0,2641.9,6.9144]
[1748564207390,0.00568042,2642.3,2641.9,6.9144]
[1748564207588,0.00568042,2642.3,2642.2,3.2078]
[1748564207792,0.00568042,2642.3,2642.2,7.1588]
[1748564208485,3.2078,2643.0,2642.2,7.1588]
[1748564208486,3.2078,2643.0,2642.2,12.1588]
[1748564208680,1.11126835,2642.9,2642.5,3.2078]
[1748564208884,3.8124,2643.3,2642.6,6.5525]
[1748564209088,2.42870261,2643.2,2642.6,6.5525]
[1748564209289,1.3175,2643.2,2642.6,6.5525]
[1748564209690,1.3175,2643.2,2643.0,3.2078]
[1748564209890,0.6046,2643.3,2643.0,3.2078]
[1748564210392,0.6278,2643.5,2643.0,3.2078]
[1748564210592,2.38110656,2643.4,2643.1,1.2697]
[1748564210802,1.27,2643.4,2643.1,1.2697]
[1748564211385,0.6278,2643.5,2643.1,1.2697]
[1748564211588,1.27,2643.8,2643.4,3.2078]
[1748564211789,1.11091527,2643.7,2643.4,3.2078]
[1748564212092,1.27,2643.8,2643.5,1.2697]
[1748564212290,0.6398,2644.1,2643.5,1.2697]
[1748564212482,1.9098,2644.1,2643.7,3.2078]
[1748564213198,1.10982223,2644.0,2643.7,3.2078]
[1748564213403,1.9098,2644.1,2643.7,3.2078]
[1748564214094,1.9098,2644.1,2643.8,1.2553]
[1748564214297,1.9098,2644.1,2643.7,3.2078]
[1748564214691,1.9098,2644.1,2643.8,1.2553]
[1748564214995,1.9098,2644.1,2644.0,3.2078]
[1748564215695,3.2078,2644.8,2644.0,3.2078]
[1748564215892,3.64423863,2644.7,2644.1,1.2553]
[1748564216194,1.10733863,2644.6,2644.1,1.2553]
[1748564216395,1.2717,2644.5,2644.1,1.2553]
[1748564217496,1.2551,2644.7,2644.2,3.941]
[1748564217806,2.5268,2644.7,2644.3,1.2517]
[1748564220498,3.2078,2644.5,2644.0,3.2078]
[1748564220696,3.2078,2644.2,2643.7,3.94]
[1748564220898,2.514,2644.1,2643.6,7.1478]
[1748564221397,2.514,2644.1,2643.9,3.2078]
[1748564221995,0.6058,2644.1,2643.9,3.2078]
[1748564222196,1.8513,2644.4,2643.9,3.2078]
[1748564222694,0.6473,2644.3,2643.9,3.2078]
[1748564222900,1.2163,2644.2,2643.9,3.2078]
[1748564226503,1.2163,2644.2,2644.0,1.2355]
[1748564226703,0.6473,2644.3,2644.0,1.2355]
[1748564226906,0.6473,2644.3,2644.0,5.1755]
[1748564227998,1.8579,2644.3,2644.0,5.1755]
[1748564228603,1.8579,2644.3,2643.9,3.2078]
[1748564229200,0.1888,2644.2,2643.9,3.2078]
[1748564229599,0.1888,2644.2,2644.0,1.2618]
[1748564230106,1.4745,2644.2,2644.0,1.2618]
[1748564230508,1.4745,2644.2,2643.9,3.2078]
[1748564230903,0.1888,2644.2,2644.0,1.2618]
[1748564231208,0.1888,2644.2,2644.0,5.2018]
[1748564231902,0.1888,2644.2,2643.9,3.2078]
[1748564232106,1.4758,2644.2,2643.9,7.1478]
[1748564237421,1.4758,2644.2,2643.9,3.2078]
[1748564237621,1.4758,2644.2,2643.9,7.1468]
[1748564238224,1.4758,2644.2,2644.0,1.3138]
[1748564238522,0.1888,2644.2,2644.0,1.3138]
[1748564239526,1.4467,2644.2,2644.0,1.3138]
[1748564242519,0.1888,2644.2,2644.0,1.3138]
[1748564244124,0.1888,2644.2,2643.9,3.2078]
[1748564244125,1.11303023,2644.1,2643.9,3.2078]
[1748564244321,1.8429,2644.1,2643.9,3.2078]
[1748564244518,1.11308428,2644.0,2643.9,3.2078]
[1748564244721,2.34138428,2644.0,2643.9,3.2078]
[1748564244919,3.00418428,2644.0,2643.9,3.2078]
[1748564245223,3.00438067,2644.0,2643.9,3.2078]
[1748564246322,2.34158067,2644.0,2643.9,3.2078]
[1748564246530,1.11328067,2644.0,2643.9,3.2078]
[1748564246826,0.1888,2644.2,2643.9,3.2078]
[1748564247027,1.11291622,2644.1,2644.0,1.2384]
[1748564249327,1.1132376,2644.1,2644.0,1.2384]
[1748564250129,1.1132376,2644.1,2643.9,7.1378]
[1748564250329,0.1888,2644.2,2644.0,1.3302]
[1748564250531,1.11351993,2644.1,2644.0,1.3302]
[1748564250830,1.11354144,2644.1,2644.0,1.3302]
[1748564251424,1.11354144,2644.1,2643.9,7.1378]
[1748564251623,1.2074,2644.1,2643.9,7.1378]
[1748564252530,1.11364591,2644.0,2643.9,7.1378]
[1748564253631,1.8481,2644.1,2643.9,7.1378]
[1748564253825,1.11365155,2644.0,2643.9,7.1378]
[1748564254533,2.37365155,2644.0,2643.9,7.1378]
[1748564254830,2.37365155,2644.0,2643.9,3.2078]
[1748564255033,2.37365155,2644.0,2643.7,0.6634]
[1748564255329,1.11365155,2643.9,2643.7,0.6634]
[1748564255631,1.26,2643.8,2643.7,0.6634]
[1748564255835,2.37365155,2643.8,2643.7,0.6634]
[1748564256226,2.37365155,2643.8,2643.5,3.2078]
[1748564256430,1.11365155,2643.7,2643.5,3.2078]
[1748564256727,1.11365155,2643.7,2643.3,3.93]
[1748564256728,2.38715155,2643.6,2643.3,3.93]
[1748564256934,1.11365155,2643.5,2643.3,3.93]
[1748564257135,1.11365155,2643.4,2643.3,3.93]
[1748564257333,1.11365155,2643.4,2643.3,5.1591]
[1748564258932,0.1888,2643.7,2643.3,5.1591]
[1748564259123,1.1126171,2643.6,2643.3,5.1591]
[1748564259436,1.1126171,2643.5,2643.3,5.1591]
[1748564259735,0.1888,2643.7,2643.3,5.1591]
[1748564259940,1.11233217,2643.6,2643.3,5.1591]
[1748564260134,0.1888,2643.7,2643.3,5.1591]
[1748564260433,1.11232983,2643.6,2643.3,5.1591]
[1748564260635,0.1888,2643.7,2643.3,5.1591]
[1748564260822,1.11219345,2643.6,2643.3,5.1591]
[1748564261026,0.1888,2643.7,2643.3,5.1591]
[1748564261226,1.10925545,2643.6,2643.3,5.1591]
[1748564261537,0.1888,2643.7,2643.3,5.1591]
[1748564261834,1.10890308,2643.6,2643.3,5.1591]
[1748564262031,1.2332,2643.6,2643.3,3.93]
[1748564262235,1.71078963,2643.5,2643.3,3.93]
[1748564262431,2.34218963,2643.4,2643.3,3.93]
[1748564263834,2.34218963,2643.4,2643.2,3.8355]
[1748564264035,1.10898963,2643.3,2643.2,3.8355]
[1748564264237,2.34218963,2643.3,2643.2,3.8355]
[1748564264436,1.2332,2643.3,2643.2,3.2078]
[1748564265036,2.34167413,2643.3,2643.2,3.2078]
[1748564265239,1.2332,2643.3,2643.2,3.2078]
[1748564269332,1.2332,2643.3,2643.1,0.66]
[1748564269729,1.2332,2643.3,2643.0,0.00568042]
[1748564269934,3.2078,2643.1,2643.0,0.00568042]
[1748564275252,1.2332,2643.3,2643.0,0.00568042]
[1748564281148,0.1889,2643.2,2643.0,0.00568042]
[1748564283339,6.21166709,2643.1,2642.7,0.6668]
[1748564283650,1.10985574,2643.0,2642.7,0.6668]
[1748564283837,1.2432,2642.9,2642.7,0.6668]
[1748564284242,1.2432,2642.9,2642.5,3.931]
[1748564284447,1.10980753,2642.8,2642.5,3.931]
[1748564284649,0.00568042,2643.0,2642.5,3.931]
[1748564284850,1.11027871,2642.9,2642.6,1.8951]
[1748564285057,1.11027871,2642.9,2642.7,4.4434]
[1748564285551,2.35347871,2642.9,2642.5,3.931]
[1748564285751,1.11037895,2642.8,2642.5,3.931]
[1748564285948,2.35107895,2642.7,2642.5,3.931]
[1748564286148,1.8658,2642.7,2642.4,0.65778042]
[1748564286648,1.1105904,2642.6,2642.4,0.65778042]
[1748564286845,1.2407,2642.5,2642.4,0.65778042]
[1748564290052,1.2407,2642.5,2642.4,0.00568042]
[1748564290357,2.3506214,2642.5,2642.4,0.00568042]
[1748564294259,1.2407,2642.5,2642.4,0.00568042]
[1748564294560,2.35058283,2642.5,2642.4,0.00568042]
[1748564298158,7.35058283,2642.5,2642.4,0.00568042]
[1748564298454,6.2407,2642.5,2641.8,0.6673]
[1748564298659,3.2078,2642.3,2641.8,0.6673]
[1748564298847,2.95086225,2642.2,2641.6,7.1318]
[1748564299055,1.11006225,2642.1,2641.6,7.1318]
[1748564299254,2.32426225,2642.0,2641.6,7.1318]
[1748564299457,1.11006225,2641.9,2641.6,7.1318]
[1748564299655,1.2142,2642.0,2641.6,8.4135]
[1748564300254,1.2142,2642.0,2641.7,1.2817]
[1748564301863,1.2725,2642.2,2641.7,1.2817]
[1748564302058,1.10890244,2642.1,2641.7,1.2817]
[1748564302258,1.10890244,2642.0,2641.7,1.2817]
[1748564302457,1.2733,2642.1,2641.7,1.2817]
[1748564302760,1.10872807,2642.0,2641.7,1.2817]
[1748564302955,1.2733,2642.1,2641.5,1.31678042]
[1748564303161,1.2733,2641.9,2641.5,0.67298042]
[1748564303760,0.6436,2641.8,2641.5,0.67298042]
[1748564303960,1.2733,2641.7,2641.5,0.67298042]
[1748564305366,3.2078,2642.0,2641.5,0.67298042]
[1748564305566,1.10828075,2641.9,2641.6,1.8598]
[1748564305759,3.2078,2642.0,2641.6,1.8598]
[1748564305955,1.10827623,2641.9,2641.6,1.8598]
[1748564306263,1.2052,2641.9,2641.5,0.67298042]
[1748564307163,1.10833372,2641.8,2641.5,0.67298042]
[1748564307365,2.33353372,2641.7,2641.5,0.67298042]
[1748564307564,1.2252,2641.7,2641.5,0.67298042]
[1748564309064,0.1891,2641.6,2641.5,0.67298042]
[1748564313572,0.1891,2641.6,2641.5,0.00568042]
[1748564315371,1.29830747,2641.6,2641.5,0.00568042]
[1748564315572,1.29845313,2641.6,2641.5,0.00568042]
[1748564315774,0.1891,2641.6,2641.5,0.00568042]
[1748564316367,1.29853454,2641.6,2641.5,0.00568042]
[1748564316571,2.57263454,2641.6,2641.5,0.00568042]
[1748564316870,1.4632,2641.6,2641.5,0.00568042]
[1748564318275,2.56808663,2641.6,2641.5,0.00568042]
[1748564319265,1.29398663,2641.6,2641.5,0.00568042]
[1748564319566,0.1891,2641.6,2641.5,0.00568042]
[1748564322185,0.1891,2641.6,2641.5,3.21348042]
[1748564322677,0.1891,2641.6,2641.5,7.12948042]
[1748564323076,3.2078,2642.3,2641.5,12.12948042]
[1748564323277,3.2078,2642.3,2641.8,3.2078]
[1748564323473,3.2078,2642.3,2641.9,5.8281]
[1748564324275,4.443,2642.9,2642.1,3.2078]
[1748564324475,4.443,2642.9,2642.2,1.9385]
[1748564324476,1.1026538,2642.8,2642.2,1.9385]
[1748564324779,3.2078,2642.9,2642.4,3.2078]
[1748564324975,3.2078,2642.9,2642.5,1.8926]
[1748564325485,0.189,2642.8,2642.5,2.19925807]
[1748564325781,0.189,2642.8,2642.5,1.8926]
[1748564327068,0.189,2642.8,2642.7,3.2078]
[1748564327275,0.189,2642.8,2642.7,7.1228]
[1748564327473,0.189,2642.8,2642.7,12.1228]
[1748564327681,3.2078,2643.7,2642.7,12.1228]
[1748564327879,1.10066684,2643.6,2643.1,3.2078]
[1748564328191,3.2078,2644.3,2643.5,3.2078]
[1748564328375,3.2078,2644.3,2643.6,5.1883]
[1748564328574,0.00568042,2644.0,2643.7,1.2726]
[1748564328774,0.00568042,2644.0,2643.7,1.908]
[1748564329882,0.00568042,2644.0,2643.5,3.2078]
[1748564330077,0.00568042,2644.0,2643.5,4.4804]
[1748564331380,0.00568042,2644.0,2643.5,7.1228]
[1748564331581,0.00568042,2644.0,2643.6,1.2218]
[1748564336289,0.00878785,2643.8,2643.5,7.1118]
[1748564337280,0.00878785,2643.8,2643.6,1.2714]
[1748564338783,0.00878785,2643.8,2643.6,5.1744]
[1748564339793,0.00878785,2643.8,2643.4,0.00568042]
[1748564340184,1.87608785,2643.8,2643.4,0.00568042]
[1748564343185,1.87608785,2643.8,2643.5,3.2078]
[1748564343488,0.00878785,2643.8,2643.6,7.1108]
[1748564343685,0.00878785,2643.8,2643.7,1.9262]
[1748564344284,0.00878785,2643.8,2643.6,7.1108]
[1748564344487,0.00878785,2643.8,2643.4,0.00568042]
[1748564344695,3.21658785,2643.8,2643.4,0.00568042]
[1748564344891,1.9362,2643.7,2643.4,0.00568042]
[1748564348193,0.00878785,2643.8,2643.6,3.2078]
[1748564348496,0.00878785,2643.8,2643.7,5.807]
[1748564350994,0.00878785,2643.8,2643.7,4.5634]
[1748564352085,0.00878785,2643.8,2643.7,5.8415]
[1748564352596,0.00878785,2643.8,2643.7,1.9385]
[1748564352796,0.00878785,2643.8,2643.7,5.8415]
[1748564359193,1.10991933,2643.8,2643.7,5.8415]
[1748564359398,0.00878785,2643.8,2643.7,5.8415]
[1748564360408,1.10987429,2643.8,2643.7,5.8415]
[1748564361002,0.00878785,2643.8,2643.7,5.8415]
[1748564367808,0.00878785,2643.8,2643.7,5.8315]
[1748564377320,0.00878785,2643.8,2643.4,0.00568042]
[1748564377521,1.10201586,2643.7,2643.4,0.00568042]
[1748564377718,2.93271586,2643.6,2643.4,0.00568042]
[1748564377913,1.10201586,2643.5,2643.4,0.00568042]
[1748564378216,2.32241586,2643.5,2643.4,0.00568042]
[1748564378421,7.32241586,2643.5,2643.4,0.00568042]
[1748564379816,7.32241586,2643.5,2642.4,7.1008]
[1748564380020,3.2078,2643.1,2642.4,7.1008]
[1748564380210,3.53211586,2643.0,2642.4,7.1008]
[1748564380415,1.10201586,2642.9,2642.4,7.1008]
[1748564380617,1.2175,2642.8,2642.4,7.1008]
[1748564381617,1.2175,2642.8,2642.4,3.2078]
[1748564383222,3.2078,2642.6,2642.3,0.00568042]
[1748564383417,2.41393112,2642.5,2642.3,0.00568042]
[1748564383720,1.09753112,2642.4,2642.3,0.00568042]
[1748564383922,2.41393112,2642.4,2642.3,0.00568042]
[1748564384223,7.60293112,2642.4,2641.4,3.894]
[1748564384415,3.2078,2641.9,2641.4,3.894]
[1748564384614,1.949,2641.8,2641.4,3.894]
[1748564388926,3.2078,2642.2,2641.5,3.2078]
[1748564389118,3.2078,2642.2,2641.6,1.9218]
[1748564389433,0.189,2642.4,2641.9,3.2078]
[1748564389617,0.189,2642.4,2642.0,1.2585]
[1748564389814,1.2532,2642.3,2642.0,1.2585]
[1748564390519,1.2532,2642.3,2641.9,7.1038]
[1748564392818,1.2532,2642.3,2641.9,3.896]
[1748564393123,3.2078,2642.1,2641.3,0.00568042]
[1748564393327,3.2078,2641.8,2641.3,0.00568042]
[1748564393623,1.2108,2641.7,2641.3,1.31708042]
[1748564394718,0.6649,2642.0,2641.3,1.31708042]